bitfinex/quotes_ETHUSD_20241123
["timestamp","ask_amount","ask_price","bid_price","bid_amount"]
[1732362674029,0.29925279,3351.5,3350.9,0.7543]
[1732362674330,0.8281,3352.3,3350.9,0.7543]
[1732362674485,0.8281,3352.3,3351.1,0.7543]
[1732362674685,0.27204799,3352.2,3351.1,0.7543]
[1732362675119,0.8281,3352.5,3351.3,0.7543]
[1732362677319,1.89237988,3352.0,3350.6,0.28252889]
[1732362677684,1.89237988,3352.0,3350.7,0.04399316]
[1732362678594,1.89042475,3352.0,3350.7,0.04399316]
[1732362678794,0.26605248,3351.9,3350.7,0.07383373]
[1732362679011,0.26605248,3351.9,3350.7,0.07383371]
[1732362679221,0.26605248,3351.9,3350.7,0.04399316]
[1732362679520,1.89237988,3351.7,3350.7,0.04399316]
[1732362679733,0.7701,3351.6,3350.7,0.04399316]
[1732362680231,1.89237988,3351.4,3350.8,0.04408223]
[1732362680385,0.26624799,3351.3,3350.8,0.7671]
[1732362680585,0.26624799,3351.3,3350.9,0.04241648]
[1732362681826,0.7701,3351.6,3350.9,0.04241648]
[1732362684024,0.7701,3351.6,3350.2,0.28252889]
[1732362684226,0.7701,3351.6,3351.0,0.04091517]
[1732362684384,0.7701,3351.6,3350.2,0.28252889]
[1732362684721,0.7701,3351.6,3351.1,0.04084847]
[1732362684921,0.26624799,3351.5,3350.2,0.28252889]
[1732362685336,0.26624799,3351.5,3350.3,0.40576713]
[1732362687092,0.26624799,3351.5,3350.4,0.7743]
[1732362687640,1.89237988,3351.3,3350.5,0.04126598]
[1732362687932,0.8222,3351.2,3350.5,0.04126598]
[1732362688302,0.8222,3351.2,3350.1,1.05682889]
[1732362688504,0.8222,3351.2,3350.6,0.04120079]
[1732362688707,0.8222,3351.2,3350.1,1.05682889]
[1732362688708,0.27145799,3351.1,3350.1,1.05682889]
[1732362689119,0.27145799,3351.1,3350.3,0.7743]
[1732362689323,0.8222,3351.5,3350.4,0.36437492]
[1732362689510,0.8222,3351.5,3350.5,0.7743]
[1732362689706,0.27145799,3351.4,3350.5,0.7743]
[1732362690002,0.27145799,3351.4,3350.6,0.04120079]
[1732362693442,0.8222,3351.2,3350.6,0.04120079]
[1732362693624,0.8222,3351.2,3350.5,0.73396437]
[1732362695715,0.8222,3351.2,3350.6,0.04120722]
[1732362696044,0.8222,3351.2,3350.6,0.03977133]
[1732362696210,0.27145799,3351.1,3350.6,0.03977133]
[1732362700516,0.8222,3351.2,3350.6,0.03977133]
[1732362700932,0.825,3351.5,3350.5,1.09833929]
[1732362701128,0.27173799,3351.4,3350.7,0.36437492]
[1732362701549,0.27173799,3351.4,3350.8,0.03857164]
[1732362701847,0.27173799,3351.4,3350.7,0.36437492]
[1732362702145,0.27173799,3351.4,3350.9,0.03805491]
[1732362702301,0.27173799,3351.4,3350.8,0.03812009]
[1732362702500,0.27173799,3351.4,3350.7,0.36437492]
[1732362702735,0.27173799,3351.4,3350.9,0.03814392]
[1732362702936,0.27173799,3351.4,3350.8,0.0382091]
[1732362703100,0.27173799,3351.4,3350.7,0.36437492]
[1732362703303,0.27173799,3351.4,3350.9,0.03814392]
[1732362703546,0.27173799,3351.4,3350.8,0.0382091]
[1732362703704,0.27173799,3351.4,3350.6,0.28252889]
[1732362703917,0.27173799,3351.4,3350.9,0.03687463]
[1732362704225,0.27173799,3351.4,3350.8,0.2974]
[1732362704436,0.50484534,3351.5,3351.4,1.74048007]
[1732362704612,0.50484534,3351.5,3351.0,0.03680945]
[1732362704613,1.06958333,3351.5,3351.1,1.46230381]
[1732362704819,1.06958333,3351.5,3351.4,0.03759853]
[1732362705018,1.06958333,3351.5,3351.2,1.52113236]
[1732362705218,1.06958333,3351.5,3351.4,0.03508762]
[1732362705439,1.06958333,3351.5,3350.8,0.2974]
[1732362705640,0.29619632,3351.4,3351.0,0.2974]
[1732362705832,0.29619632,3351.4,3351.2,0.2974]
[1732362706040,0.29619632,3351.4,3350.6,1.47083545]
[1732362706403,1.06958333,3351.5,3351.1,0.2974]
[1732362706708,0.56473799,3351.5,3350.4,1.48930906]
[1732362706907,0.24571179,3351.4,3350.4,1.48930906]
[1732362707149,0.24571179,3351.4,3350.4,1.82406312]
[1732362707305,0.8185,3351.4,3350.4,1.82406312]
[1732362707505,0.8185,3351.4,3350.3,1.44692338]
[1732362707934,0.8185,3351.4,3350.5,1.43383495]
[1732362708246,0.8185,3351.4,3350.7,1.46529714]
[1732362709006,0.8185,3351.4,3350.9,1.47394355]
[1732362709211,0.8185,3351.4,3350.9,0.33475406]
[1732362709431,0.8185,3351.2,3350.0,1.49942534]
[1732362710243,0.8185,3351.2,3350.0,1.78884812]
[1732362710610,0.8185,3351.2,3350.0,4.78884812]
[1732362711005,0.8185,3351.2,3350.2,1.47416017]
[1732362711245,0.8185,3351.2,3350.4,1.42668594]
[1732362711442,0.8185,3351.2,3350.5,0.28942278]
[1732362711750,0.8185,3351.2,3350.6,1.73715479]
[1732362712045,0.8185,3351.2,3350.7,0.03583615]
[1732362712252,0.8185,3351.2,3350.7,1.40259375]
[1732362712453,0.8185,3351.2,3350.8,0.03577092]
[1732362712625,0.8185,3351.2,3350.7,1.40259375]
[1732362712824,0.8185,3351.2,3350.9,0.0357057]
[1732362713023,0.8185,3351.2,3350.7,1.40234082]
[1732362713255,0.8185,3351.2,3351.0,0.03564048]
[1732362713460,0.8185,3351.2,3350.7,1.7326148]
[1732362713618,0.8185,3351.2,3351.1,0.03557527]
[1732362713822,1.17881797,3351.2,3350.7,1.7326148]
[1732362714134,1.17881797,3351.2,3351.1,0.03557527]
[1732362714651,1.17881797,3351.2,3350.7,1.7326148]
[1732362714822,1.17881797,3351.2,3351.1,0.03557527]
[1732362715016,1.17881797,3351.2,3350.7,1.7326148]
[1732362715324,1.17881797,3351.2,3351.1,0.03557527]
[1732362715858,1.17881797,3351.2,3351.1,0.03438943]
[1732362716021,1.17881797,3351.2,3351.1,0.03324311]
[1732362716221,1.17881797,3351.2,3350.5,0.2974]
[1732362716422,1.17881797,3351.2,3351.1,0.03324311]
[1732362716622,1.17881797,3351.2,3350.8,1.72024377]
[1732362716851,0.20736368,3351.1,3350.8,1.72024377]
[1732362718135,0.8185,3351.2,3350.8,1.72024377]
[1732362721367,0.8185,3351.2,3351.0,1.78301123]
[1732362721531,0.8185,3351.2,3350.9,0.37785832]
[1732362721532,0.8185,3351.2,3350.9,1.44159958]
[1732362721733,0.8185,3351.2,3351.0,1.79420372]
[1732362723538,0.8185,3351.2,3351.1,1.77205499]
[1732362724629,0.8185,3351.2,3351.0,1.79420372]
[1732362724873,0.8185,3351.2,3351.1,0.03132971]
[1732362725892,0.38323799,3351.5,3351.1,2.14745435]
[1732362726085,0.38323799,3351.5,3351.1,1.7413046]
[1732362726586,0.38323799,3351.5,3351.1,2.38262147]
[1732362727290,0.38323799,3351.5,3351.1,2.02788978]
[1732362727587,0.38323799,3351.5,3351.1,1.41361921]
[1732362727787,0.38323799,3351.5,3351.4,1.73563326]
[1732362728169,0.38323799,3351.5,3351.4,1.76618654]
[1732362728652,0.38323799,3351.5,3351.4,0.03054963]
[1732362728854,1.17903799,3351.5,3351.4,0.03054963]
[1732362729075,1.17568173,3351.5,3351.4,0.03054963]
[1732362730279,1.17568173,3351.5,3351.4,1.79001682]
[1732362730464,0.37988173,3351.5,3351.4,1.79001682]
[1732362730664,2.93,3351.8,3351.4,4.79001682]
[1732362730906,0.7958,3351.7,3351.4,1.79001682]
[1732362731055,0.37258,3351.6,3351.4,1.79001682]
[1732362731252,0.15076641,3351.6,3351.4,1.79001682]
[1732362731693,0.7958,3351.7,3351.4,1.79001682]
[1732362735971,2.93,3351.8,3351.5,0.32757203]
[1732362736200,0.38248188,3351.7,3351.5,0.2974]
[1732362736400,0.38248188,3351.7,3351.6,4.78823944]
[1732362738196,0.89481882,3352.3,3351.6,4.78823944]
[1732362738663,0.7958,3352.4,3351.6,4.78823944]
[1732362738860,1.69061882,3352.4,3351.6,4.78823944]
[1732362742632,1.69061882,3352.4,3352.0,0.2974]
[1732362742924,0.89481882,3352.3,3352.0,0.2974]
[1732362743737,0.89481882,3352.3,3352.0,1.77583596]
[1732362744229,0.89481882,3352.5,3352.0,0.2974]
[1732362744405,0.89481882,3352.5,3352.0,1.77583596]
[1732362744729,0.89481882,3352.5,3352.2,0.2974]
[1732362744935,0.89481882,3352.5,3352.2,1.73227382]
[1732362745895,1.66581882,3352.5,3352.2,1.73227382]
[1732362746100,1.66581882,3352.5,3352.2,0.2974]
[1732362746619,1.66581882,3352.5,3352.0,0.2974]
[1732362746793,1.66581882,3352.5,3352.0,1.77583596]
[1732362747333,0.89481882,3352.2,3351.7,0.7996]
[1732362747623,0.89481882,3351.9,3351.1,1.47249035]
[1732362747827,0.89481882,3351.9,3351.2,1.49922309]
[1732362748603,0.783,3352.1,3351.2,1.49922309]
[1732362748793,0.89481882,3352.2,3351.4,1.45432637]
[1732362748992,0.16778188,3352.0,3351.5,1.47317016]
[1732362749293,0.16778188,3352.0,3351.6,1.42397093]
[1732362752449,0.16778188,3352.0,3351.9,0.2974]
[1732362752649,0.16778188,3352.0,3351.9,1.78285715]
[1732362753144,0.92308188,3352.0,3351.9,0.2974]
[1732362753304,0.92308188,3352.0,3351.7,0.2974]
[1732362753506,0.7553,3351.6,3350.9,1.463402]
[1732362753821,0.7553,3351.6,3350.7,0.89162773]
[1732362754429,0.7553,3351.6,3350.8,0.2974]
[1732362754914,0.7553,3351.6,3350.8,0.58398518]
[1732362755114,0.7553,3351.6,3350.8,0.2974]
[1732362755747,0.7553,3351.6,3350.8,3.2974]
[1732362756044,0.7553,3351.6,3351.1,0.2974]
[1732362758016,0.7553,3351.6,3351.1,4.71397647]
[1732362760360,0.7553,3351.6,3351.0,1.77445885]
[1732362760561,0.7553,3351.6,3351.0,4.77445885]
[1732362760794,0.7553,3351.6,3351.0,3.2974]
[1732362761089,0.7553,3351.6,3351.0,0.2974]
[1732362762059,0.7553,3351.6,3351.2,0.2974]
[1732362763709,0.7553,3351.6,3351.1,0.2974]
[1732362764567,0.7553,3351.6,3351.1,1.71397647]
[1732362767706,0.7553,3351.6,3351.1,0.2974]
[1732362768212,0.7553,3351.6,3351.1,1.71397647]
[1732362768602,0.7553,3351.6,3351.1,0.2974]
[1732362769206,0.7553,3351.6,3351.1,1.71397647]
[1732362769614,0.7553,3351.6,3351.1,0.2974]
[1732362770202,0.7553,3351.6,3351.1,1.71397647]
[1732362770383,0.7553,3351.6,3351.1,0.2974]
[1732362770584,0.7553,3351.6,3351.1,1.71397647]
[1732362773681,0.7553,3351.6,3351.1,0.2974]
[1732362773887,0.7553,3351.6,3351.1,1.71397647]
[1732362774220,0.7553,3351.6,3351.1,0.2974]
[1732362774804,0.7553,3351.6,3351.1,1.71397647]
[1732362777691,0.8063,3351.2,3350.3,0.8215]
[1732362777894,0.8063,3351.2,3349.6,0.8215]
[1732362778081,0.97641188,3351.1,3349.8,0.89481882]
[1732362778285,0.8063,3351.1,3349.8,0.89481882]
[1732362779928,0.8063,3351.0,3349.8,0.89481882]
[1732362780731,0.8063,3351.0,3350.0,1.4708991]
[1732362782531,0.89481882,3351.1,3350.0,1.4708991]
[1732362782532,0.7784,3350.8,3350.1,0.2974]
[1732362783096,0.89481882,3350.8,3350.0,0.2974]
[1732362783405,0.7784,3350.7,3350.0,0.2974]
[1732362783604,0.89481882,3350.8,3350.0,0.2974]
[1732362783605,0.7784,3350.5,3350.0,0.2974]
[1732362783802,0.7784,3350.5,3349.6,1.73579694]
[1732362784035,0.7784,3350.5,3349.6,0.2974]
[1732362784392,0.7784,3350.5,3349.7,0.2974]
[1732362784600,0.7784,3350.4,3349.1,0.7716]
[1732362784905,0.7784,3350.2,3349.2,0.2974]
[1732362785319,0.7784,3350.1,3349.2,0.2974]
[1732362785521,0.7784,3350.1,3349.0,0.2974]
[1732362785720,0.96705729,3350.0,3349.0,0.2974]
[1732362786038,0.7784,3350.0,3349.0,0.2974]
[1732362786232,0.7784,3350.0,3348.7,1.40439968]
[1732362786233,0.7784,3350.0,3349.2,1.77237042]
[1732362786438,0.7784,3350.0,3349.2,0.2974]
[1732362787313,0.7784,3350.0,3349.0,0.2974]
[1732362788124,0.7784,3350.0,3348.8,1.49769132]
[1732362789338,0.7784,3350.0,3348.6,1.47217021]
[1732362789835,0.8621,3349.9,3348.6,0.26500811]
[1732362790036,0.7621,3349.7,3348.3,0.7682]
[1732362790343,0.7621,3349.7,3348.3,2.21115431]
[1732362790711,0.7621,3349.7,3348.3,0.7682]
[1732362791041,0.7621,3349.7,3348.3,2.21115431]
[1732362791514,0.7621,3349.7,3348.4,4.99737531]
[1732362791937,0.7621,3349.7,3348.6,1.47217021]
[1732362792312,0.7621,3349.7,3348.6,4.73717832]
[1732362793240,0.7621,3350.0,3349.0,1.46821633]
[1732362793543,0.7621,3350.0,3349.2,1.47497042]
[1732362796648,0.7621,3350.0,3349.1,5.23377151]
[1732362797017,0.7621,3350.0,3349.1,2.23377151]
[1732362797815,0.7621,3350.0,3349.1,0.7682]
[1732362798014,0.7621,3350.0,3349.1,2.23377151]
[1732362798322,0.7621,3350.0,3349.2,4.77237042]
[1732362799329,0.7621,3350.0,3349.2,1.77237042]
[1732362799650,0.7621,3350.0,3349.2,0.2974]
[1732362800731,0.7621,3350.0,3348.8,1.79509132]
[1732362800933,0.7621,3350.0,3348.8,0.2974]
[1732362801346,0.7621,3350.0,3348.8,1.79509132]
[1732362801643,0.7621,3350.0,3348.7,3.0]
[1732362801644,0.7621,3350.0,3348.7,0.2974]
[1732362801852,0.7823,3349.8,3348.7,0.2974]
[1732362802638,0.7823,3349.8,3348.8,0.2974]
[1732362803920,0.7823,3349.8,3348.7,0.2974]
[1732362804144,0.7823,3349.8,3348.7,1.70179968]
[1732362804418,0.7823,3349.8,3348.7,0.2974]
[1732362804649,0.7823,3349.8,3348.7,1.70179968]
[1732362810337,0.7823,3349.8,3349.1,1.76297151]
[1732362811648,0.7823,3349.8,3349.5,0.2974]
[1732362811816,0.7823,3349.8,3349.6,0.2974]
[1732362812537,0.7823,3349.8,3349.3,4.41081143]
[1732362813647,0.7823,3349.8,3349.3,3.0]
[1732362814158,0.7823,3349.8,3349.3,4.41081143]
[1732362814748,0.7823,3349.8,3349.2,1.73839516]
[1732362815377,0.7823,3349.8,3349.3,1.41081143]
[1732362815534,0.7823,3349.8,3349.2,0.2974]
[1732362815741,0.7823,3349.8,3349.2,1.73839516]
[1732362816838,0.767,3350.0,3349.2,1.73839516]
[1732362818877,0.767,3350.0,3349.2,0.2974]
[1732362827948,0.767,3350.0,3349.2,1.73839516]
[1732362828281,0.767,3350.0,3349.0,1.46208005]
[1732362828586,0.767,3350.0,3348.9,0.5253]
[1732362829472,0.767,3350.0,3349.0,0.2974]
[1732362830042,0.767,3350.0,3349.0,1.75395906]
[1732362830465,0.21335407,3350.3,3349.0,1.75395906]
[1732362831384,0.21335407,3350.3,3349.0,0.2974]
[1732362832088,0.21335407,3350.3,3349.0,1.75395906]
[1732362836267,0.21335407,3350.3,3349.0,0.2974]
[1732362836451,0.21335407,3350.3,3348.5,3.0]
[1732362836657,0.21335407,3350.3,3348.2,0.26500811]
[1732362836658,0.89568968,3350.1,3348.6,2.65356737]
[1732362836957,0.89568968,3350.1,3348.8,0.2974]
[1732362837851,0.89568968,3350.1,3348.7,0.2974]
[1732362839103,0.89568968,3350.1,3348.7,1.78087746]
[1732362839405,0.89568968,3350.1,3348.7,4.78087746]
[1732362839972,0.21335407,3350.3,3348.7,4.78087746]
[1732362841117,0.89568968,3350.1,3348.7,4.78087746]
[1732362841777,0.21335407,3350.3,3348.2,0.26500811]
[1732362841778,0.89568968,3349.8,3348.9,0.2974]
[1732362842305,0.89568968,3349.5,3348.9,0.2974]
[1732362842506,0.38256897,3349.4,3348.9,0.2974]
[1732362842819,0.38256897,3349.4,3348.3,0.2974]
[1732362842982,0.89568968,3349.2,3348.3,0.2974]
[1732362843177,0.89568968,3348.9,3348.3,0.2974]
[1732362843781,0.89568968,3348.9,3347.5,0.2974]
[1732362843981,0.58256897,3349.4,3347.5,0.2974]
[1732362843982,0.89568968,3348.7,3347.5,0.2974]
[1732362844616,1.89376648,3348.9,3347.5,0.2974]
[1732362844841,1.89376648,3348.9,3347.5,1.74197311]
[1732362845323,1.89376648,3348.9,3347.2,0.2974]
[1732362845496,0.19937665,3348.8,3347.2,0.2974]
[1732362845693,3.05,3348.3,3347.2,0.2974]
[1732362846285,3.05,3348.3,3347.3,0.2974]
[1732362846633,0.78737665,3348.2,3347.3,0.2974]
[1732362847599,0.78737665,3348.2,3347.2,1.73167438]
[1732362848187,0.78737665,3348.2,3347.0,1.45245131]
[1732362848383,0.67673767,3348.1,3347.0,1.45245131]
[1732362849088,0.67673767,3348.1,3346.8,1.41142866]
[1732362849318,0.67673767,3348.1,3346.7,1.72941752]
[1732362849624,0.37267377,3348.0,3346.6,1.44450736]
[1732362849797,0.37267377,3348.0,3346.5,1.4356813]
[1732362850125,0.29431779,3347.9,3346.1,1.42363436]
[1732362850425,2.93,3347.3,3346.0,3.30721853]
[1732362850583,2.93,3347.3,3345.8,1.73244628]
[1732362850785,2.93,3347.3,3346.0,1.41345205]
[1732362851322,2.93,3347.3,3345.9,2.16963376]
[1732362851496,0.293,3347.2,3346.0,1.41345205]
[1732362851696,0.293,3347.2,3346.0,4.41345205]
[1732362852111,0.293,3347.2,3346.2,1.89376648]
[1732362852430,0.293,3347.2,3346.3,1.74066174]
[1732362852588,0.3223,3347.1,3346.3,4.74066174]
[1732362853965,0.3223,3347.1,3346.3,4.46479446]
[1732362854421,0.3223,3347.1,3346.3,4.49467294]
[1732362854622,0.3223,3347.1,3346.5,1.4356813]
[1732362855527,2.93,3347.3,3346.5,3.32944778]
[1732362855732,2.93,3347.3,3346.7,1.43201752]
[1732362855934,3.05,3348.6,3346.7,1.43201752]
[1732362856224,3.05,3348.6,3347.0,0.2974]
[1732362856225,2.93,3348.5,3347.0,0.2974]
[1732362856559,2.93,3348.5,3346.9,4.4812091]
[1732362856560,0.305,3348.2,3347.1,1.79015157]
[1732362857227,0.305,3348.2,3347.2,1.43427438]
[1732362857540,0.3355,3348.1,3347.1,1.79015157]
[1732362858763,0.3355,3348.1,3347.1,1.82002601]
[1732362858966,0.3355,3348.1,3347.1,1.79015157]
[1732362859128,0.305,3348.2,3347.1,1.79015157]
[1732362859129,0.36905,3348.0,3347.1,1.79015157]
[1732362860760,0.36905,3348.0,3347.9,1.7767633]
[1732362860966,0.305,3348.2,3347.9,1.7767633]
[1732362861179,0.305,3348.2,3347.6,1.41174109]
[1732362861327,0.305,3348.2,3347.7,1.69837243]
[1732362861527,0.3355,3348.1,3347.7,1.69837243]
[1732362865171,1.0904,3348.1,3347.7,1.40097243]
[1732362865333,3.6849,3348.5,3348.1,1.4320692]
[1732362872338,3.6849,3348.5,3348.0,0.2974]
[1732362872555,0.36849,3348.4,3348.1,1.4320692]
[1732362873342,0.36849,3348.4,3348.2,0.2974]
[1732362873542,0.36849,3348.4,3348.3,1.42093985]
[1732362873852,0.36849,3348.4,3348.3,1.71833985]
[1732362875065,2.88343035,3348.5,3348.3,1.71833985]
[1732362875267,0.789,3348.7,3348.3,1.71833985]
[1732362875974,0.7914,3349.9,3349.4,1.70983677]
[1732362876162,0.7914,3349.9,3348.9,0.2974]
[1732362876363,0.7914,3349.9,3349.1,0.2974]
[1732362876539,0.7914,3349.7,3349.3,1.74476834]
[1732362876739,0.7914,3349.7,3349.3,0.2974]
[1732362877375,0.7914,3349.7,3349.3,1.74476834]
[1732362877770,0.7914,3349.7,3349.4,0.2974]
[1732362879188,0.7914,3349.7,3349.2,1.73177951]
[1732362879788,0.7914,3349.7,3349.2,0.2974]
[1732362880451,0.7914,3349.7,3349.3,0.2974]
[1732362883188,0.7914,3349.7,3349.2,0.2974]
[1732362883482,0.7914,3349.7,3349.4,0.2974]
[1732362884199,0.7914,3349.7,3348.8,0.2974]
[1732362884406,0.7914,3349.7,3348.7,1.40624262]
[1732362884566,0.7914,3349.7,3348.7,1.65458407]
[1732362884988,0.7914,3349.7,3348.7,1.93045135]
[1732362885307,0.7914,3349.7,3349.2,0.2974]
[1732362885481,0.7914,3349.7,3349.3,1.74446834]
[1732362886282,0.7914,3349.7,3349.3,0.2974]
[1732362886803,0.7914,3349.7,3349.3,1.76549342]
[1732362887372,0.7914,3349.7,3349.1,0.2974]
[1732362887569,0.7914,3349.7,3349.4,1.43571407]
[1732362887904,0.7914,3349.7,3349.4,1.73311407]
[1732362889512,0.7914,3349.7,3349.4,0.2974]
[1732362889676,0.7914,3349.7,3349.4,1.73311407]
[1732362890210,0.7914,3349.7,3349.5,1.42048264]
[1732362890599,0.7914,3349.7,3349.4,0.2974]
[1732362891520,0.7914,3349.7,3349.4,1.73311407]
[1732362892023,0.7914,3349.7,3349.3,1.76549342]
[1732362892698,0.7914,3349.7,3348.8,1.47445886]
[1732362893825,0.7914,3349.7,3349.5,0.2974]
[1732362893983,0.7914,3349.7,3348.8,1.47445886]
[1732362894782,0.7914,3349.7,3348.9,0.2974]
[1732362895007,0.7914,3349.7,3349.3,0.2974]
[1732362895238,0.7914,3349.7,3349.3,1.71803743]
[1732362896426,0.7914,3349.7,3349.3,0.2974]
[1732362897219,0.7914,3349.7,3349.3,1.7296136]
[1732362897419,0.7914,3349.7,3349.3,0.2974]
[1732362897800,0.7914,3349.7,3349.3,1.7296136]
[1732362899515,0.7914,3349.7,3349.1,1.76239806]
[1732362900599,0.89587126,3349.7,3349.1,1.76239806]
[1732362900799,0.89587126,3349.7,3348.5,1.05274145]
[1732362900800,0.7943,3349.6,3348.7,1.43995707]
[1732362900990,0.7943,3349.4,3348.9,1.70368621]
[1732362901622,0.7943,3349.4,3348.9,0.2974]
[1732362902518,0.7943,3349.4,3348.7,1.76280405]
[1732362902519,0.769,3349.3,3348.7,1.76280405]
[1732362902721,0.769,3349.1,3348.9,0.2974]
[1732362903029,0.769,3349.1,3348.9,1.70368621]
[1732362903749,0.769,3349.1,3349.0,0.2974]
[1732362903891,0.769,3349.1,3349.0,1.78794157]
[1732362904435,0.769,3349.1,3349.0,0.65213169]
[1732362904737,0.769,3349.1,3349.0,2.14267326]
[1732362905435,0.769,3349.6,3349.0,2.14267326]
[1732362905596,0.20360113,3349.5,3349.0,0.65213169]
[1732362905967,0.20360113,3349.5,3349.4,0.2974]
[1732362906301,0.20360113,3349.5,3349.2,0.2974]
[1732362906607,0.18684724,3349.4,3349.3,1.70654981]
[1732362907723,0.769,3349.6,3349.3,1.70624981]
[1732362909237,0.769,3349.6,3349.3,1.98211709]
[1732362911624,0.769,3349.6,3349.3,0.57326728]
[1732362911801,0.769,3349.6,3349.3,1.70624981]
[1732362914032,0.37114,3349.8,3349.3,1.70624981]
[1732362914902,0.37114,3349.8,3349.3,1.98211709]
[1732362915744,0.37114,3349.8,3349.3,1.70624981]
[1732362916342,0.37114,3349.8,3349.0,1.46857021]
[1732362916642,0.37114,3349.8,3349.3,0.2974]
[1732362916801,0.37114,3349.8,3349.3,1.78019982]
[1732362917001,1.26701126,3349.8,3349.3,1.78019982]
[1732362920314,1.26701126,3349.8,3349.3,0.2974]
[1732362921343,1.26701126,3349.8,3349.4,0.2974]
[1732362922449,1.26701126,3349.8,3349.3,0.2974]
[1732362922647,1.26701126,3349.8,3349.2,0.2974]
[1732362925503,0.89587126,3349.5,3349.1,0.2974]
[1732362925705,0.89587126,3349.5,3348.2,1.48534088]
[1732362925909,0.89587126,3349.2,3348.2,1.48534088]
[1732362926615,0.89587126,3349.2,3348.2,1.76120816]
[1732362927512,0.7633,3349.1,3348.2,1.76120816]
[1732362927722,0.7633,3348.9,3348.2,1.76120816]
[1732362928420,0.7633,3348.9,3348.3,0.27586728]
[1732362928630,0.7633,3348.9,3348.4,1.4139557]
[1732362930667,0.7633,3348.9,3348.5,0.2974]
[1732362930871,0.7633,3348.9,3348.7,0.2974]
[1732362931181,0.6433,3348.9,3348.4,1.4139557]
[1732362931745,0.15391713,3348.9,3348.8,1.7055882]
[1732362931950,1.26701126,3349.8,3348.8,1.7055882]
[1732362932169,0.89587126,3349.5,3348.8,1.7055882]
[1732362933875,0.37114,3349.8,3348.8,2.5149882]
[1732362934058,0.7807,3349.7,3349.3,1.77725799]
[1732362934235,0.20477113,3349.6,3349.3,1.77725799]
[1732362937540,0.20477113,3349.6,3349.4,0.2974]
[1732362938042,0.20477113,3349.6,3349.5,1.7068023]
[1732362938243,0.7807,3349.7,3349.5,0.2974]
[1732362938471,0.7807,3349.7,3349.5,1.7068023]
[1732362938843,0.7807,3349.7,3349.5,0.2974]
[1732362939058,0.7807,3349.7,3349.4,1.7160798]
[1732362939264,0.20477113,3349.6,3349.4,1.7160798]
[1732362940944,0.20477113,3349.6,3349.0,1.42526697]
[1732362941139,0.20477113,3349.6,3349.4,1.72947628]
[1732362942682,0.37114,3349.8,3349.3,3.0]
[1732362942683,0.37114,3349.8,3349.7,1.71980743]
[1732362942995,2.92,3350.1,3349.7,2.07453912]
[1732362943176,2.92,3350.1,3349.7,4.71980743]
[1732362943377,0.67796,3350.0,3349.7,4.71980743]
[1732362943542,0.67796,3350.0,3349.9,0.2974]
[1732362943868,0.67796,3350.0,3349.9,1.72140683]
[1732362945163,2.92,3350.1,3349.9,1.72140683]
[1732362946488,2.92,3350.1,3350.0,0.2974]
[1732362946657,2.92,3350.1,3349.7,1.48980682]
[1732362946860,2.92,3350.1,3349.5,1.46915699]
[1732362947062,2.92,3350.1,3349.5,4.46915699]
[1732362947063,0.68658713,3350.0,3349.5,4.46915699]
[1732362947368,1.48298713,3350.0,3349.5,4.46915699]
[1732362947569,1.47676245,3350.0,3349.8,0.2974]
[1732362947756,0.83488584,3349.9,3349.8,1.71933647]
[1732362948757,0.83488584,3349.9,3349.2,4.47187127]
[1732362948993,0.7964,3349.8,3349.1,0.831]
[1732362949155,1.34111571,3349.8,3349.2,1.47187127]
[1732362949987,1.34111571,3349.8,3349.5,1.76655699]
[1732362950289,0.30718728,3349.7,3349.5,1.76655699]
[1732362951612,0.30718728,3349.7,3349.5,0.2974]
[1732362952377,0.30718728,3349.7,3349.5,1.7686328]
[1732362952714,0.30718728,3349.7,3349.3,0.2974]
[1732362953014,0.30718728,3349.7,3349.5,0.2974]
[1732362953220,0.1648303,3349.6,3349.5,0.2974]
[1732362953422,0.1648303,3349.6,3349.5,1.77945385]
[1732362953777,0.1648303,3349.6,3349.5,2.13418554]
[1732362953982,0.54471571,3349.8,3349.5,2.13418554]
[1732362954191,0.54471571,3349.8,3349.5,1.77945385]
[1732362954884,0.54471571,3349.8,3349.6,0.2974]
[1732362955116,0.54471571,3349.8,3349.6,1.79165771]
[1732362956722,0.7964,3349.7,3349.4,0.2974]
[1732362956883,1.0200987,3349.7,3349.4,0.2974]
[1732362957726,1.91596996,3349.7,3349.3,0.2974]
[1732362957888,0.24606857,3349.6,3349.3,0.2974]
[1732362958928,0.24606857,3349.6,3349.4,0.2974]
[1732362959928,0.24606857,3349.6,3349.5,0.2974]
[1732362960983,0.8173,3349.5,3349.3,0.2974]
[1732362961227,1.06560555,3349.5,3349.3,0.2974]
[1732362961587,1.06560555,3349.5,3348.9,1.73628105]
[1732362961816,0.19614768,3349.4,3348.9,1.73628105]
[1732362962032,0.19614768,3349.4,3349.0,0.2974]
[1732362962334,0.19614768,3349.4,3349.0,1.70558755]
[1732362974364,1.34981571,3349.8,3349.4,0.2974]
[1732362974567,1.34981571,3349.8,3349.4,1.70685978]
[1732362974865,1.34981571,3349.8,3349.5,0.2974]
[1732362975098,0.54471571,3349.8,3349.5,1.72515332]
[1732362975282,0.54471571,3349.8,3349.5,4.72515332]
[1732362979689,0.54471571,3349.8,3349.5,1.72515332]
[1732362980281,0.54391571,3349.8,3349.5,1.72515332]
[1732362980482,0.7601,3349.7,3349.6,0.2974]
[1732362980794,0.7601,3349.7,3349.6,1.73734081]
[1732362981505,0.7601,3349.7,3349.6,0.2974]
[1732362982166,0.7601,3349.7,3349.6,1.73734081]
[1732362984366,0.7601,3349.7,3349.5,0.2974]
[1732362984876,0.7601,3349.7,3349.6,0.2974]
[1732362986081,0.7601,3349.7,3349.3,0.2974]
[1732362986281,1.43978697,3349.8,3349.3,0.2974]
[1732362986282,0.7874,3349.5,3349.3,0.2974]
[1732362987361,0.2199887,3349.6,3349.3,1.75995385]
[1732362987557,0.7874,3349.8,3349.5,0.2974]
[1732362988192,0.7874,3349.8,3349.5,1.71698687]
[1732362990197,0.7874,3349.8,3349.3,0.2974]
[1732362991172,0.7874,3349.8,3349.3,1.75995385]
[1732362992508,0.46032713,3349.8,3349.5,4.71698687]
[1732362993085,3.7074,3350.1,3349.5,4.71698687]
[1732362993310,2.92,3350.1,3349.5,4.71698687]